bitfinex/quotes_ETHUSD_20250824
["timestamp","ask_amount","ask_price","bid_price","bid_amount"]
[1756075907542,0.1048,4771.7,4771.6,5.71273308]
[1756075909042,0.1048,4771.7,4771.6,2.09573308]
[1756075909246,0.001,4771.9,4771.8,2.09564524]
[1756075909562,0.001,4771.9,4771.8,5.71264524]
[1756075910688,0.001,4771.9,4771.8,6.02224524]
[1756075911049,0.001,4771.9,4771.8,10.09994307]
[1756075911247,0.3078,4771.9,4771.8,5.81744524]
[1756075911451,0.7807,4771.9,4771.8,5.71264524]
[1756075911674,0.001,4771.9,4771.8,6.12704524]
[1756075911875,0.001,4771.9,4771.8,9.12704524]
[1756075913162,0.001,4771.9,4771.8,5.51004524]
[1756075913486,0.001,4771.9,4771.8,12.12348887]
[1756075914478,0.001,4771.9,4771.8,11.81838887]
[1756075914787,0.001,4771.9,4771.8,10.84878887]
[1756075915290,0.001,4771.9,4771.8,10.84778887]
[1756075915678,0.001,4771.9,4771.8,7.23178887]
[1756075915886,0.001,4771.9,4771.8,10.84778887]
[1756075916056,0.001,4771.9,4771.8,7.23178887]
[1756075916250,0.001,4771.9,4771.8,10.84778887]
[1756075917181,0.7807,4771.9,4771.8,2.20044524]
[1756075917382,0.7807,4771.9,4771.8,5.81644524]
[1756075917979,0.7807,4771.9,4771.8,2.20044524]
[1756075918184,0.7807,4771.9,4771.8,5.71164524]
[1756075918591,0.001,4771.9,4771.8,6.02124524]
[1756075918766,0.001,4771.9,4771.8,6.99404103]
[1756075918971,0.001,4771.9,4771.8,3.37804103]
[1756075919490,0.001,4771.9,4771.8,6.99404103]
[1756075919694,0.001,4771.9,4771.8,3.37804103]
[1756075919858,0.001,4771.9,4771.8,6.68444103]
[1756075920057,0.7807,4771.9,4771.8,5.71164524]
[1756075921159,0.7807,4771.9,4771.8,2.09564524]
[1756075921365,0.7807,4771.9,4771.8,3.616]
[1756075921566,0.7807,4771.9,4771.8,5.71164524]
[1756075922075,0.001,4771.9,4771.8,5.71164524]
[1756075922405,0.001,4771.9,4771.8,10.06788165]
[1756075922898,0.001,4771.9,4771.8,5.20044524]
[1756075923100,0.001,4771.9,4771.8,8.81644524]
[1756075923474,0.001,4771.9,4771.8,9.12604524]
[1756075924714,0.3078,4771.9,4771.8,8.81644524]
[1756075924920,0.001,4771.9,4771.8,8.81644524]
[1756075925086,0.001,4771.9,4771.8,5.20044524]
[1756075925291,0.001,4771.9,4771.8,9.12604524]
[1756075925596,0.001,4771.9,4771.8,10.02724165]
[1756075926285,0.001,4771.9,4771.8,10.68724165]
[1756075928340,0.001,4771.9,4771.8,10.37764165]
[1756075928646,0.7807,4771.9,4771.8,8.81544524]
[1756075928917,0.3078,4771.9,4771.8,8.81544524]
[1756075929076,0.001,4771.9,4771.8,9.02024524]
[1756075929278,0.001,4771.9,4771.8,9.12504524]
[1756075929481,0.001,4771.9,4771.8,11.07870094]
[1756075930088,0.001,4771.9,4771.8,7.46370094]
[1756075930417,0.041,4772.4,4771.9,5.75560133]
[1756075930583,0.041,4772.4,4772.3,5.40502568]
[1756075930913,0.041,4772.4,4772.3,9.12482568]
[1756075931100,0.041,4772.4,4772.3,11.15616931]
[1756075931312,0.041,4772.4,4772.3,11.26096931]
[1756075932012,0.041,4772.4,4772.3,12.33027925]
[1756075933019,0.1048,4774.0,4773.3,2.09498669]
[1756075933246,0.1048,4774.0,4773.3,6.00308669]
[1756075933441,0.4576,4773.7,4773.3,5.81478669]
[1756075934432,0.4576,4773.7,4773.3,2.19978669]
[1756075934756,0.3309,4773.4,4773.3,5.81478669]
[1756075934918,0.7885,4773.4,4773.3,5.81478669]
[1756075935117,0.04,4773.4,4773.3,3.21483963]
[1756075935428,0.7885,4773.4,4773.3,6.82983963]
[1756075935817,0.04,4773.4,4773.3,7.12293963]
[1756075936044,0.3309,4773.4,4773.3,6.82983963]
[1756075936614,0.7885,4773.4,4773.3,6.82883963]
[1756075937422,0.7885,4773.4,4773.3,3.0]
[1756075937847,0.7885,4773.4,4773.0,3.614]
[1756075938149,0.4576,4773.3,4773.1,3.0]
[1756075938334,0.04,4773.4,4773.3,3.0]
[1756075938516,0.04,4773.4,4773.2,3.614]
[1756075938749,0.04,4773.4,4773.3,3.614]
[1756075939139,0.3309,4773.4,4773.3,3.614]
[1756075939655,0.7885,4773.4,4773.3,3.614]
[1756075940166,0.7885,4773.4,4773.3,5.70898669]
[1756075940842,0.7885,4773.4,4773.3,6.78939254]
[1756075941019,0.7885,4773.4,4773.3,5.70898669]
[1756075941466,0.04,4773.4,4773.3,5.70898669]
[1756075941765,0.7885,4773.4,4773.3,5.70898669]
[1756075942446,0.04,4773.4,4773.3,9.00208669]
[1756075942642,0.04,4773.4,4773.3,9.63177469]
[1756075942824,0.04,4773.4,4773.3,11.66311832]
[1756075944064,0.3309,4773.4,4773.3,7.75601832]
[1756075944356,0.3309,4773.4,4773.3,7.41943032]
[1756075944357,0.04,4773.4,4773.3,7.41943032]
[1756075944543,0.04,4773.4,4773.3,7.87703032]
[1756075946256,1e-08,4773.4,4773.3,8.53703032]
[1756075946456,1e-08,4773.4,4773.3,8.84213032]
[1756075947461,1e-08,4773.4,4773.3,8.94693032]
[1756075947961,0.041,4774.4,4774.2,0.66]
[1756075948128,0.04,4775.4,4775.2,2.09415312]
[1756075948129,0.4576,4775.3,4775.2,2.09415312]
[1756075948329,0.4576,4775.3,4775.2,5.70715312]
[1756075948330,0.7485,4775.3,4775.2,5.70715312]
[1756075948637,0.7485,4775.3,4774.4,3.613]
[1756075948837,0.1048,4774.6,4774.4,4.242603]
[1756075949041,0.7485,4774.5,4773.9,0.1048]
[1756075949260,0.2909,4774.5,4774.4,2.09450402]
[1756075949562,0.2909,4774.5,4774.4,5.70750402]
[1756075949727,0.2909,4774.5,4774.4,2.09450402]
[1756075949927,0.7485,4774.5,4774.4,5.70750402]
[1756075950828,0.7485,4774.5,4774.4,3.613]
[1756075951431,0.7485,4774.5,4774.4,5.70750402]
[1756075952631,0.7485,4774.5,4774.4,3.613]
[1756075954464,0.7485,4774.5,4774.4,5.70750402]
[1756075956062,0.7485,4774.5,4774.4,5.70650402]
[1756075957272,0.04,4775.4,4774.4,0.78010911]
[1756075957562,0.1048,4774.9,4774.8,2.09431942]
[1756075957765,0.8533,4774.9,4774.8,5.70631942]
[1756075958567,0.8533,4774.9,4774.8,2.09431942]
[1756075958731,0.8533,4774.9,4774.8,5.70631942]
[1756075959664,0.8533,4774.9,4774.8,5.6985405]
[1756075960065,0.1048,4774.9,4774.8,5.6985405]
[1756075960267,0.1048,4774.9,4774.8,5.9916405]
[1756075960469,0.1048,4774.9,4774.8,5.6985405]
[1756075960771,0.8533,4774.9,4774.8,5.6985405]
[1756075961466,0.1048,4774.9,4774.8,8.9916405]
[1756075961635,0.2909,4774.9,4774.8,8.81112855]
[1756075961831,0.7485,4774.9,4774.8,8.81112855]
[1756075962271,0.7485,4774.9,4774.8,0.1048]
[1756075962566,0.8533,4774.9,4774.3,2.09453781]
[1756075962767,0.1048,4774.5,4774.3,2.09453781]
[1756075963068,0.04,4775.4,4775.1,2.09418706]
[1756075963407,0.04,4775.4,4775.0,3.612]
[1756075963547,0.04,4775.4,4775.3,2.09410927]
[1756075963741,0.1448,4775.4,4775.3,5.70610927]
[1756075964442,0.04,4775.4,4775.3,6.01770927]
[1756075965671,0.04,4775.4,4775.3,6.12250927]
[1756075965977,0.04,4775.4,4775.3,7.0005921]
[1756075966671,0.04,4775.4,4775.3,10.0005921]
[1756075966974,0.04,4775.4,4775.3,11.6105921]
[1756075967468,0.04,4775.4,4775.3,11.9156921]
[1756075967869,0.04,4775.4,4775.3,11.6105921]
[1756075968037,0.04,4775.4,4775.3,12.2705921]
[1756075968239,0.04,4775.4,4775.3,12.5756921]
[1756075968860,1e-08,4775.4,4775.3,12.5756921]
[1756075969372,1e-08,4775.4,4775.3,12.5746921]
[1756075969937,1e-08,4775.4,4775.3,8.9636921]
[1756075970271,1e-08,4775.4,4775.3,12.2695921]
[1756075970682,1.61,4777.8,4775.3,12.2695921]
[1756075970683,0.4445,4776.9,4775.4,3.0]
[1756075970982,0.4445,4776.9,4776.3,2.09367083]
[1756075971185,0.4445,4776.9,4776.3,5.70467083]
[1756075971390,0.3562,4776.4,4776.3,5.70467083]
[1756075971758,0.04,4776.4,4776.3,5.80947083]
[1756075972791,0.04,4776.4,4776.3,6.25397083]
[1756075972991,0.3562,4776.4,4776.3,6.25397083]
[1756075973156,0.041,4776.4,4776.3,7.59812644]
[1756075973356,0.041,4776.4,4776.3,7.90972644]
[1756075974970,0.041,4776.4,4776.3,7.59812644]
[1756075975693,0.041,4776.4,4776.3,7.90972644]
[1756075975863,0.041,4776.4,4776.3,7.59812644]
[1756075976069,0.3572,4776.4,4776.3,7.59712644]
[1756075976265,0.041,4776.4,4776.3,7.59712644]
[1756075976490,0.041,4776.4,4776.3,12.51872644]
[1756075979582,0.041,4776.4,4776.3,8.59712644]
[1756075979797,0.041,4776.4,4776.3,12.20612644]
[1756075980098,0.041,4776.4,4776.3,8.59712644]
[1756075980300,0.8017,4776.4,4776.3,7.25297083]
[1756075980598,0.8017,4776.4,4776.3,10.75717083]
[1756075981926,0.8017,4776.4,4776.3,7.75717083]
[1756075982291,0.8017,4776.4,4776.3,4.14817083]
[1756075982481,0.8017,4776.4,4776.3,7.75717083]
[1756075983578,0.8017,4776.4,4776.3,4.14817083]
[1756075983819,0.9065,4776.4,4776.3,5.6635]
[1756075984029,0.9065,4776.4,4776.3,7.75717083]
[1756075984835,0.9065,4776.4,4776.3,4.14817083]
[1756075985120,0.9065,4776.4,4776.3,7.75617083]
[1756075985714,0.9065,4776.4,4776.3,4.14817083]
[1756075986046,0.041,4776.4,4776.3,7.75617083]
[1756075986208,0.041,4776.4,4776.3,12.05276302]
[1756075986390,0.3572,4776.4,4776.3,11.74116302]
[1756075986594,0.8017,4776.4,4776.3,10.75617083]
[1756075987325,0.8017,4776.4,4776.3,5.6625]
[1756075987524,0.9065,4776.4,4776.3,4.14817083]
[1756075987830,0.9065,4776.4,4776.3,7.75617083]
[1756075988694,0.9065,4776.4,4776.3,4.14817083]
[1756075989226,0.9065,4776.4,4776.3,7.75617083]
[1756075990046,0.9065,4776.4,4776.3,4.14817083]
[1756075990202,0.9065,4776.4,4776.3,7.75617083]
[1756075990399,0.9065,4776.4,4775.4,1.61]
[1756075990624,0.1048,4776.1,4775.4,3.608]
[1756075990824,0.421,4775.5,4775.4,4.237535]
[1756075991120,0.8655,4775.5,4775.4,6.33160041]
[1756075991321,0.8655,4775.5,4775.4,4.237535]
[1756075992331,0.8655,4775.5,4775.4,6.33160041]
[1756075993614,0.8655,4775.5,4775.4,2.72360041]
[1756075993933,0.1048,4775.5,4775.4,6.33160041]
[1756075994503,0.1048,4775.5,4775.4,6.62410041]
[1756075994728,0.041,4776.4,4775.6,2.09397772]
[1756075995036,0.041,4776.4,4775.7,3.7118]
[1756075995037,0.1458,4776.4,4775.7,3.7118]
[1756075995236,0.1458,4776.4,4775.8,2.09389002]
[1756075995441,0.1458,4776.4,4776.3,2.09367083]
[1756075995629,0.1458,4776.4,4776.3,5.70067083]
[1756075995805,0.041,4776.4,4776.3,5.99317083]
[1756075996012,0.041,4776.4,4776.3,6.62254583]
[1756075996216,0.041,4776.4,4776.3,6.33004583]
[1756075996419,0.041,4776.4,4776.3,10.58020419]
[1756075997038,0.041,4776.4,4776.3,6.97320419]
[1756075997242,0.041,4776.4,4776.3,10.58020419]
[1756075997753,0.041,4776.4,4776.3,10.28770419]
[1756075998052,0.041,4776.4,4776.3,9.43484583]
[1756075998232,0.3552,4776.4,4776.3,6.43484583]
[1756075998432,0.3552,4776.4,4776.3,6.33004583]
[1756075998828,0.041,4776.4,4776.3,6.33004583]
[1756076000156,0.041,4776.4,4776.3,6.62254583]
[1756076000361,0.041,4776.4,4776.3,2.72304583]
[1756076000527,0.8262,4776.4,4776.3,6.33004583]
[1756076000922,0.8262,4776.4,4776.3,2.72304583]
[1756076001133,0.8262,4776.4,4776.3,6.33004583]
[1756076001527,0.8262,4776.4,4776.3,22.69458594]
[1756076001528,0.041,4776.4,4776.3,22.69458594]
[1756076001742,0.041,4776.4,4776.3,23.65968594]
[1756076002061,0.041,4776.4,4776.3,23.76448594]
[1756076002557,1e-08,4776.4,4776.3,23.76448594]
[1756076003262,1e-08,4776.4,4776.3,19.19238594]
[1756076003467,1e-08,4776.4,4776.3,18.89988594]
[1756076003626,1e-08,4776.4,4776.3,9.43384583]
[1756076004266,1e-08,4776.4,4776.3,9.72634583]
[1756076004432,1e-08,4776.4,4776.3,10.87910419]
[1756076004785,1e-08,4776.4,4776.3,24.6111443]
[1756076004938,1e-08,4776.4,4776.3,24.9162443]
[1756076005438,1e-08,4776.4,4776.3,16.91016661]
[1756076005638,0.04,4777.4,4777.3,8.12429499]
[1756076006142,0.8252,4777.4,4777.3,11.73029499]
[1756076006342,0.8252,4777.4,4777.3,11.83509499]
[1756076006736,0.8252,4777.4,4777.3,0.1048]
[1756076006937,0.8252,4777.4,4777.3,3.7108]
[1756076007278,0.8252,4777.4,4777.3,0.1048]
[1756076008147,1.2760662,4777.4,4777.3,0.1048]
[1756076008348,1.41415282,4777.4,4777.3,0.1048]
[1756076010787,1.41415282,4777.4,4776.3,0.0744]
[1756076011107,0.9218662,4777.3,4776.4,0.629433]
[1756076011242,0.3142,4776.5,4776.4,0.629433]
[1756076011442,0.89,4776.5,4776.4,0.629433]
[1756076012745,0.89,4776.5,4776.4,2.72305999]
[1756076012966,0.1048,4776.5,4776.4,0.629433]
[1756076013175,0.4505815,4777.2,4776.9,2.09339265]
[1756076013475,0.1048,4777.1,4777.0,2.09336403]
[1756076013783,0.89,4777.1,4777.0,2.09336403]
[1756076013985,0.89,4777.1,4776.8,2.0934123]
[1756076014162,0.89,4777.1,4776.7,2.0934955]
[1756076014358,0.89,4777.1,4776.6,3.605]
[1756076014359,0.89,4777.1,4777.0,2.09336403]
[1756076014751,0.1048,4777.1,4777.0,2.09336403]
[1756076014966,0.1048,4777.1,4777.0,2.38586403]
[1756076015698,0.1048,4777.1,4777.0,0.2925]
[1756076015861,0.419,4777.1,4777.0,0.471]
[1756076016066,0.89,4777.1,4777.0,0.471]
[1756076016897,1.34050751,4777.1,4777.0,0.471]
[1756076017190,1.47855826,4777.1,4777.0,0.471]
[1756076019093,1.47955826,4777.1,4777.0,0.471]
[1756076020801,1.02905075,4777.1,4777.0,0.471]
[1756076020964,0.3152,4777.1,4777.0,0.471]
[1756076021167,0.87030451,4777.1,4777.0,0.471]
[1756076021362,0.1058,4777.1,4777.0,2.56436403]
[1756076021895,0.1058,4777.1,4777.0,0.471]
[1756076022084,0.1058,4777.1,4777.0,0.7635]
[1756076022490,0.1058,4777.1,4777.0,2.85686403]
[1756076022686,0.42,4777.1,4777.0,0.471]
[1756076022989,0.8783,4777.1,4777.0,0.471]
[1756076023298,1.32888726,4777.1,4777.0,0.471]
[1756076023466,1.52204885,4777.1,4777.0,0.471]
[1756076026405,0.74954885,4777.1,4777.0,0.471]
[1756076026606,0.84538726,4777.1,4777.0,0.471]
[1756076027103,0.55638726,4777.1,4777.0,0.471]
[1756076028382,0.55638726,4777.1,4777.0,2.86196403]
[1756076028599,0.55638726,4777.1,4777.0,0.7686]
[1756076028801,0.55638726,4777.1,4777.0,0.471]
[1756076029001,0.84538726,4777.1,4777.0,0.471]
[1756076029202,1.30368726,4777.1,4777.0,0.471]
[1756076029603,1.49432885,4777.1,4777.0,0.471]
[1756076029807,1.49432885,4777.1,4776.3,2.1680331]
[1756076029808,2.05705748,4777.1,4776.3,2.1680331]
[1756076030013,0.45058726,4777.0,4776.4,0.629458]
[1756076030209,0.45058726,4776.9,4776.4,0.629458]
[1756076030400,0.75437022,4777.1,4776.4,0.629458]
[1756076030401,0.1048,4776.5,4776.4,0.629458]
[1756076031210,0.8521,4776.5,4776.4,0.629458]
[1756076031712,0.3938,4776.5,4776.4,0.629458]
[1756076035207,0.84500092,4776.5,4776.4,0.629458]
[1756076037232,0.84500092,4776.5,4776.4,3.81491698]
[1756076037233,0.55600092,4776.5,4776.4,3.81491698]
[1756076037383,7.2308,4776.8,4776.7,2.0934955]
[1756076037587,7.2308,4776.8,4776.7,2.3910955]
[1756076038997,7.126,4776.8,4776.7,9.2991955]
[1756076039202,7.126,4776.8,4776.7,11.26603201]
[1756076039604,0.001,4777.1,4777.0,2.09336403]
[1756076039806,0.001,4777.1,4777.0,8.42558295]
[1756076040000,0.001,4777.1,4777.0,8.53038295]
[1756076040326,0.001,4777.1,4777.0,8.83548295]
[1756076040519,0.001,4777.1,4777.0,10.86682658]
[1756076041303,0.001,4777.1,4777.0,4.83220766]
[1756076043794,0.001,4777.1,4777.0,4.63190766]
[1756076045124,0.001,4777.1,4777.0,8.23390766]
[1756076046141,0.001,4777.1,4777.0,4.63190766]
[1756076046327,0.001,4777.1,4777.0,9.50766403]
[1756076047791,0.001,4777.1,4777.0,5.90566403]
[1756076047997,0.001,4777.1,4777.0,9.50766403]
[1756076048327,0.04,4777.4,4777.3,2.75323257]
[1756076048496,0.04,4778.4,4777.9,13.06579582]
[1756076048699,0.04,4778.4,4778.3,2.0927945]
[1756076049129,0.04,4778.4,4778.3,6.2565225]
[1756076049434,0.329,4778.4,4778.3,6.2565225]
[1756076049819,0.7873,4778.4,4778.3,6.2565225]
[1756076050618,0.7873,4778.4,4778.3,4.163728]
[1756076050820,0.7873,4778.4,4778.3,0.562728]
[1756076051333,0.7873,4778.4,4778.3,2.6555225]
[1756076051528,0.7873,4778.4,4778.3,6.2565225]
[1756076052030,0.7873,4778.4,4778.3,4.163728]
[1756076052396,0.7873,4778.4,4778.3,0.562728]
[1756076052801,1.36112961,4778.4,4776.9,2.09340785]
[1756076053139,0.89899055,4778.3,4777.0,3.601]
[1756076053298,0.89899055,4778.3,4776.9,0.629296]
[1756076053299,0.45009055,4778.2,4777.1,2.09327762]
[1756076053641,0.16373906,4778.4,4777.3,2.09322838]
[1756076053825,0.2862,4777.4,4777.3,2.09323257]
[1756076054132,0.4489,4777.9,4777.2,3.6]
[1756076054300,0.4489,4777.9,4777.3,2.09323257]
[1756076054702,0.4489,4777.9,4777.2,3.6]
[1756076054902,0.4489,4777.9,4777.6,2.09306361]
[1756076055098,0.2862,4777.7,4777.5,2.09313751]
[1756076055304,0.2862,4777.7,4777.6,2.09310113]
[1756076055722,0.44991237,4778.2,4777.6,2.39850113]
[1756076055939,0.4889,4778.4,4777.7,2.09305732]
[1756076056234,0.44992837,4778.3,4777.9,2.09296761]
[1756076056537,0.2862,4778.0,4777.9,2.09296761]
[1756076056747,0.04,4778.4,4778.1,2.09285865]
[1756076057044,0.2862,4778.2,4777.9,4.162728]
[1756076057417,0.04,4778.4,4778.2,2.09280398]
[1756076057746,0.04,4778.4,4778.3,3.6]
[1756076058045,0.04,4778.4,4778.3,5.9981945]
[1756076058351,0.04,4778.4,4778.3,6.55817294]
[1756076058518,0.04,4778.4,4778.3,5.9981945]
[1756076058921,0.04,4778.4,4777.9,0.562728]
[1756076058922,0.7751,4778.4,4777.9,2.65565616]
[1756076059125,0.4489,4778.3,4778.2,2.09282901]
[1756076059342,0.8399,4778.3,4778.2,2.09282901]
[1756076061020,0.8399,4778.3,4778.2,3.599]
[1756076061645,0.04,4778.4,4778.3,2.0927945]
[1756076061839,0.04,4778.4,4778.3,3.26347058]
[1756076063244,0.04,4778.4,4778.3,3.71305458]
[1756076063410,0.04,4778.4,4778.3,9.74022296]
[1756076064023,0.04,4778.4,4778.3,10.04532296]
[1756076064318,0.04,4778.4,4778.3,9.74022296]
[1756076064530,0.04,4778.4,4778.3,12.16854688]
[1756076065747,0.04,4778.4,4778.3,12.47394688]
[1756076067744,0.04,4778.4,4778.3,8.87494688]
[1756076068118,0.04,4778.4,4778.3,12.47294688]
[1756076068320,0.00100001,4779.4,4778.4,3.66]
[1756076068540,0.00100001,4779.4,4779.3,2.09235662]
[1756076068746,0.00100001,4779.4,4779.3,5.69035662]
[1756076069247,0.00100001,4779.4,4779.3,6.25308462]
[1756076069465,0.00100001,4779.4,4779.3,5.96048462]
[1756076069622,0.00100001,4779.4,4779.3,9.55848462]
[1756076069950,0.00100001,4779.4,4779.3,11.50288307]
[1756076071625,0.00100001,4779.4,4779.3,11.60768307]
[1756076072428,0.00100001,4779.4,4779.3,11.60668307]
[1756076073744,0.00100001,4779.4,4779.3,8.00968307]
[1756076073948,0.00100001,4779.4,4779.3,11.60668307]
[1756076075746,0.1048,4780.3,4780.1,2.09200644]
[1756076075925,0.7351,4780.2,4780.1,2.09200644]
[1756076076128,0.2862,4780.2,4780.1,5.68800644]
[1756076076324,0.2862,4780.2,4780.1,6.31689944]
[1756076076529,0.7351,4780.2,4780.1,6.31689944]
[1756076076725,0.1048,4780.3,4780.1,4.224893]
[1756076076960,0.1048,4780.3,4780.2,2.09196267]
[1756076077160,0.04,4780.4,4780.3,2.09191891]
[1756076077456,0.04,4780.4,4780.3,7.07731321]
[1756076077662,0.04,4780.4,4780.3,6.77191321]
[1756076077832,0.3262,4780.4,4780.3,3.28071321]
[1756076078033,0.04,4780.4,4780.3,6.87671321]
[1756076078227,0.04,4780.4,4780.3,7.18211321]
[1756076079050,0.04,4780.4,4780.3,10.18211321]
[1756076079450,0.4889,4781.4,4780.3,10.18211321]
[1756076079451,0.04,4781.4,4780.3,8.3952943]
[1756076079665,0.04,4781.4,4781.3,8.11864977]
[1756076079961,0.04,4781.4,4781.3,11.71364977]
[1756076080260,0.04,4781.4,4781.3,12.01904977]
[1756076080462,0.04,4781.4,4781.3,12.46794977]
[1756076082028,0.7761,4781.4,4781.3,12.16254977]
[1756076083489,0.041,4781.4,4781.3,0.4489]
[1756076083793,0.041,4781.4,4781.3,9.83138139]
[1756076084086,0.04,4782.4,4782.3,2.09104405]
[1756076084258,0.04,4782.4,4782.3,11.99931243]
[1756076084459,0.04,4782.4,4782.3,11.81801243]
[1756076084659,0.3505,4782.4,4782.3,11.81801243]
[1756076084966,0.3505,4782.4,4782.3,12.44654143]
[1756076085153,0.04,4782.4,4782.3,12.44654143]
[1756076085354,0.48687772,4782.4,4782.3,6.70547305]
[1756076085852,0.48687772,4782.4,4782.3,6.41937305]
[1756076086265,1.82090635,4782.4,4782.3,0.258329]
[1756076086492,1.25817772,4782.4,4779.3,1.608]
[1756076086691,0.55888627,4780.7,4780.4,0.562729]
[1756076086889,0.4153,4780.5,4780.3,2.09189553]
[1756076087074,0.44687772,4780.4,4780.3,3.594]
[1756076087280,1.21817772,4780.4,4780.3,3.594]
[1756076087479,1.21817772,4780.4,4780.1,4.222862]
[1756076087657,0.44687772,4780.3,4780.2,2.09196267]
[1756076088053,0.75737772,4780.3,4780.2,2.09196267]
[1756076088259,1.21817772,4780.3,4780.2,3.594]
[1756076088597,0.44687772,4780.3,4780.2,5.68596267]
[1756076088804,0.44687772,4780.3,4780.2,3.594]
[1756076089115,0.44687772,4780.3,4780.2,6.82324039]
[1756076089312,0.55888627,4781.0,4780.2,10.47296372]
[1756076089491,0.44822047,4780.9,4780.2,5.452986]
[1756076089806,0.44822047,4780.8,4780.7,2.19653041]
[1756076090108,0.44822047,4780.8,4780.7,6.44083041]
[1756076090256,0.44822047,4780.8,4780.7,6.54563041]
[1756076090599,0.44822047,4780.8,4780.7,7.17433941]
[1756076090904,0.44822047,4780.8,4780.7,6.70433941]
[1756076091458,0.44822047,4780.8,4780.7,2.82523941]
[1756076091704,0.44822047,4780.8,4780.7,6.41823941]
[1756076092006,1.21952047,4780.8,4780.7,3.593]
[1756076092289,1.40784114,4780.8,4780.7,3.593]
[1756076092501,0.44822047,4780.8,4780.7,5.97084388]
[1756076092858,1.7796574,4780.8,4780.5,0.1048]
[1756076093053,1.7796574,4780.8,4780.6,5.68478764]
[1756076093054,0.44822047,4780.7,4780.6,5.68478764]
[1756076093287,0.75872047,4780.7,4780.6,3.593]
[1756076093602,0.75872047,4780.7,4780.6,5.68478764]
[1756076093752,0.44822047,4780.7,4780.6,5.68478764]
[1756076094157,0.44822047,4780.7,4780.6,5.97088764]
[1756076094378,0.44822047,4780.7,4780.6,6.07568764]
[1756076095766,0.75872047,4780.7,4780.6,2.19658764]
[1756076095985,1.21952047,4780.7,4780.6,2.19658764]
[1756076096162,1.21952047,4780.7,4780.6,5.78958764]
[1756076096364,1.21952047,4780.7,4780.6,2.19658764]
[1756076096674,1.21952047,4780.7,4780.6,3.593]
[1756076096870,1.21952047,4780.7,4780.6,5.68478764]
[1756076098015,0.44822047,4780.7,4780.6,5.68478764]
[1756076098167,0.44822047,4780.7,4780.6,6.59966764]
[1756076098363,0.44822047,4780.7,4780.6,6.31356764]
[1756076100215,1.21952047,4780.7,4780.6,0.62878]
[1756076100427,1.21952047,4780.7,4780.1,0.004]
[1756076100428,1.44627252,4780.7,4780.1,0.004]
[1756076100723,0.1048,4780.3,4780.1,0.004]
[1756076100920,0.75872047,4780.2,4780.1,0.004]
[1756076101266,1.21952047,4780.2,4780.1,0.004]
[1756076105336,1.35195252,4780.2,4780.1,0.004]
[1756076106047,1.45675252,4780.2,4780.1,0.004]
[1756076106326,1.32432047,4780.2,4780.1,0.004]
[1756076106511,0.8761,4780.2,4780.1,0.004]
[1756076106827,1.32467285,4780.2,4780.1,0.004]
[1756076107429,4.91767285,4780.2,4780.1,0.004]
[1756076107928,12.04367285,4780.2,4780.1,0.004]
[1756076108244,18.39463552,4780.2,4780.1,0.004]
[1756076108527,18.39463552,4780.2,4779.6,0.004]
[1756076108528,4.01118151,4779.7,4779.6,0.004]
[1756076108836,7.87505436,4779.7,4779.6,0.004]
[1756076108990,8.33585436,4779.7,4779.6,0.004]
[1756076109827,15.46185436,4779.7,4779.6,0.004]
[1756076110026,16.95221776,4779.7,4779.6,0.004]
[1756076110227,15.46185436,4779.7,4779.6,0.004]
[1756076110529,16.95626195,4779.7,4779.6,0.004]
[1756076110731,16.95626195,4779.7,4778.1,0.04]
[1756076110732,1.919,4779.2,4778.1,0.04]
[1756076110904,26.00987477,4779.2,4778.1,0.04]
[1756076111234,26.57547477,4779.2,4778.1,0.04]
[1756076112553,13.53807325,4779.2,4778.1,0.04]
[1756076112906,8.68607325,4779.2,4778.1,0.04]
[1756076113107,11.57690964,4779.2,4778.1,0.044]
[1756076113324,10.51421682,4779.2,4778.1,0.044]
[1756076113531,6.26121682,4779.2,4778.1,0.044]
[1756076113713,6.83401682,4779.2,4778.1,0.044]
[1756076114029,2.80041682,4779.2,4779.1,0.044]
[1756076114210,6.39341682,4779.2,4779.1,0.044]
[1756076114416,6.83401682,4779.2,4779.1,0.044]
[1756076114642,6.39341682,4779.2,4779.1,0.044]
[1756076115037,6.83401682,4779.2,4779.1,0.044]
[1756076115406,7.95553169,4779.2,4779.1,0.044]
[1756076115910,4.36253169,4779.2,4779.1,0.044]
[1756076116109,6.39341682,4779.2,4779.1,0.044]
[1756076117053,6.83401682,4779.2,4779.1,0.044]
[1756076117410,13.96001682,4779.2,4779.1,0.044]
[1756076117607,8.42847941,4779.2,4779.1,0.3584]
[1756076117928,0.55337285,4779.2,4779.1,0.832]
[1756076118644,0.1048,4779.5,4779.4,2.09229825]
[1756076118812,0.55435823,4779.5,4779.4,0.788]
[1756076119333,0.55435823,4779.5,4779.4,0.3144]
[1756076119541,0.1048,4779.5,4779.4,3.17274813]
[1756076120633,0.1048,4780.0,4779.9,2.09209397]
[1756076120832,3.594,4780.8,4780.2,2.09196244]
[1756076121065,0.1048,4780.5,4780.3,2.56551091]
[1756076121280,0.44966468,4780.4,4780.3,2.09191091]
[1756076121464,0.44966468,4780.4,4780.3,2.40631091]
[1756076121853,0.44966468,4780.4,4780.3,0.788]
[1756076122565,0.1048,4780.5,4780.3,0.788]
[1756076123637,0.1048,4780.5,4780.3,0.3144]
[1756076123840,0.1048,4780.5,4780.4,0.4736]
[1756076124139,0.55452591,4780.5,4780.4,0.788]
[1756076124843,0.55452591,4780.5,4780.4,2.87987515]
[1756076125042,0.44972591,4780.5,4780.4,3.43994732]
[1756076126242,0.44972591,4780.5,4780.4,0.3144]
[1756076126440,0.55452591,4780.5,4780.4,0.788]
[1756076127749,0.55452591,4780.5,4780.4,0.3144]
[1756076128145,0.44972591,4780.5,4780.4,0.3144]